bitfinex/quotes_ETHUSD_20250425
["timestamp","ask_amount","ask_price","bid_price","bid_amount"]
[1745605118034,0.05,1795.9,1795.6,5.066]
[1745605118334,0.7756,1795.8,1795.6,5.066]
[1745605118560,0.7756,1795.8,1795.5,5.062]
[1745605120430,0.7756,1795.8,1795.5,5.11768697]
[1745605120629,0.7756,1795.8,1795.5,5.062]
[1745605125779,6.34424015,1795.8,1795.4,5.062]
[1745605126460,0.7756,1795.8,1795.4,5.062]
[1745605126639,6.34417929,1795.8,1795.4,5.062]
[1745605127182,7.54044208,1795.8,1795.4,5.062]
[1745605127386,13.10922009,1795.8,1795.4,5.062]
[1745605127682,0.8137,1795.7,1795.4,5.062]
[1745605128080,6.38256855,1795.7,1795.4,5.062]
[1745605128283,0.8137,1795.7,1795.4,5.062]
[1745605129229,0.8137,1795.7,1795.4,5.61085743]
[1745605129424,0.05,1795.9,1795.4,6.10427082]
[1745605129425,0.8332,1795.9,1795.4,6.10427082]
[1745605131530,0.8332,1795.9,1795.5,0.05568689]
[1745605131681,0.8332,1795.9,1795.4,6.10427082]
[1745605133285,6.4016895,1795.9,1795.4,5.5154]
[1745605134081,5.56858928,1795.8,1795.4,5.062]
[1745605134575,6.4016895,1795.9,1795.4,5.062]
[1745605134980,6.40167925,1795.9,1795.4,5.062]
[1745605135289,11.97019304,1795.9,1795.4,5.062]
[1745605135918,6.40167925,1795.9,1795.4,5.062]
[1745605136095,11.97015658,1795.9,1795.4,5.062]
[1745605136414,6.40167733,1795.9,1795.4,5.062]
[1745605138421,6.40167426,1795.9,1795.4,5.062]
[1745605138589,11.97015803,1795.9,1795.4,5.062]
[1745605139120,6.40167426,1795.9,1795.4,5.062]
[1745605140628,5.56914574,1795.7,1795.4,5.062]
[1745605140930,5.57018002,1795.3,1795.1,5.062]
[1745605141129,5.57018002,1795.3,1794.8,17.1564]
[1745605141130,5.5710029,1795.1,1794.8,17.1564]
[1745605141438,5.57115438,1795.0,1794.8,5.062]
[1745605141616,0.7503,1795.0,1794.8,5.062]
[1745605141830,0.7503,1795.0,1794.5,5.062]
[1745605142028,6.32133474,1795.0,1794.5,5.062]
[1745605142730,6.32133474,1795.0,1794.1,16.703]
[1745605142731,5.57227237,1794.6,1794.1,0.41868951]
[1745605143037,5.57351465,1794.2,1794.1,0.41868951]
[1745605143330,5.57366984,1794.2,1793.8,5.062]
[1745605143539,5.57402052,1794.1,1793.8,5.062]
[1745605143698,0.8052,1794.5,1793.8,5.062]
[1745605143898,5.57312947,1794.4,1793.8,5.062]
[1745605144313,5.57335597,1794.3,1793.8,5.062]
[1745605144509,0.28345161,1794.3,1793.8,5.062]
[1745605144751,0.8052,1794.5,1794.0,0.58887082]
[1745605144913,5.57045931,1795.2,1794.5,0.4534]
[1745605145102,5.57054368,1795.2,1794.6,0.58887082]
[1745605145310,0.28303555,1795.2,1794.7,0.05571482]
[1745605145640,0.7664,1795.3,1794.5,0.4534]
[1745605145846,6.33662345,1795.3,1794.6,0.05571216]
[1745605146048,6.33662345,1795.3,1794.5,1.09798291]
[1745605146337,5.57043545,1795.2,1794.5,4.04227082]
[1745605146499,1.03994925,1795.3,1794.5,4.04227082]
[1745605146703,5.5705593,1795.2,1794.5,4.04227082]
[1745605146939,1.03994925,1795.3,1794.6,0.05571218]
[1745605147143,1.03994925,1795.3,1794.5,4.09798146]
[1745605147338,6.61018524,1795.3,1794.5,4.09798146]
[1745605147547,6.61018524,1795.3,1794.5,4.51630282]
[1745605147856,5.5724277,1794.6,1794.3,0.4534]
[1745605148060,5.57289496,1794.4,1794.1,5.5174]
[1745605148345,5.57247066,1794.6,1794.1,5.5174]
[1745605148509,5.57212223,1794.7,1794.1,5.5174]
[1745605148906,5.57231207,1794.6,1794.1,5.5174]
[1745605149107,6.16092669,1794.7,1794.1,0.4534]
[1745605149321,5.57301521,1794.4,1794.0,5.059]
[1745605149520,0.8109,1794.6,1794.0,5.059]
[1745605149719,5.57261315,1794.5,1794.0,5.059]
[1745605149936,5.57301196,1794.4,1794.0,5.059]
[1745605150749,5.57275783,1794.5,1794.0,5.059]
[1745605151320,11.14560785,1794.5,1794.0,5.059]
[1745605151521,5.57275783,1794.5,1794.0,5.059]
[1745605151730,7.06836758,1794.5,1794.0,5.059]
[1745605152139,5.57309224,1794.4,1794.0,5.059]
[1745605152347,5.57289344,1794.4,1794.0,5.059]
[1745605152550,5.57308473,1794.4,1794.0,5.059]
[1745605152859,5.57327305,1794.3,1794.0,5.059]
[1745605153061,5.57360457,1794.2,1794.0,5.059]
[1745605153231,3.68681151,1794.2,1793.6,0.4534]
[1745605153575,5.5748608,1793.8,1793.5,5.06]
[1745605153724,5.57482241,1793.8,1793.5,5.06]
[1745605153924,5.57485234,1793.8,1793.5,5.06]
[1745605154152,5.57454803,1793.9,1793.5,5.06]
[1745605154337,5.5747579,1793.8,1793.5,5.06]
[1745605154549,5.57498769,1793.8,1793.5,5.06]
[1745605154725,5.57498769,1793.8,1793.1,0.05]
[1745605154726,5.57556726,1793.6,1793.1,5.5634]
[1745605154926,0.7667,1793.7,1793.1,5.5634]
[1745605155149,0.7667,1793.9,1793.2,3.0]
[1745605155346,6.34134573,1793.9,1793.3,0.4534]
[1745605155558,6.34135618,1793.9,1793.3,0.4534]
[1745605156163,5.57496495,1793.8,1793.3,0.4534]
[1745605156460,5.57523064,1793.7,1793.3,0.4534]
[1745605156863,8.47334958,1793.8,1793.3,0.4534]
[1745605157176,2.89841151,1793.8,1793.3,0.4534]
[1745605157331,8.4733154,1793.8,1793.3,0.4534]
[1745605157754,4.37987517,1793.8,1793.3,0.4534]
[1745605157958,5.57527348,1793.7,1793.3,0.4534]
[1745605158159,8.47326589,1793.8,1793.3,0.4534]
[1745605158328,6.35858968,1793.5,1793.1,5.5634]
[1745605158863,5.57515693,1793.7,1793.1,5.5634]
[1745605159074,9.27153792,1793.8,1793.1,5.5634]
[1745605159635,9.27153792,1793.8,1793.2,0.05575653]
[1745605160432,8.47397262,1793.6,1793.1,5.5634]
[1745605160634,5.57556111,1793.6,1793.1,5.5634]
[1745605162374,5.57506829,1793.7,1793.1,5.5634]
[1745605162675,5.57553613,1793.6,1793.1,5.5634]
[1745605162880,3.69661151,1793.8,1793.1,5.5634]
[1745605163174,5.57506829,1793.7,1793.2,0.4534]
[1745605163533,6.37316388,1793.8,1793.2,0.4534]
[1745605163933,5.57510394,1793.7,1793.2,0.4534]
[1745605164133,6.37316388,1793.8,1793.2,0.4534]
[1745605164333,5.57509218,1793.7,1793.2,0.4534]
[1745605164572,3.0,1793.9,1793.2,0.4534]
[1745605164876,8.57457588,1793.9,1793.2,0.50915571]
[1745605165075,5.57494339,1793.8,1793.2,0.4534]
[1745605165240,8.5745986,1793.9,1793.2,0.4534]
[1745605165580,8.5745986,1793.9,1793.2,0.50915318]
[1745605165766,5.57515634,1793.7,1793.2,0.50915318]
[1745605165973,3.70011151,1794.0,1793.2,0.50915318]
[1745605166139,9.27425791,1794.0,1793.3,0.4534]
[1745605167667,3.70011151,1794.0,1793.3,0.4534]
[1745605167877,8.47205198,1794.2,1793.4,0.50914828]
[1745605168084,0.7967,1794.3,1793.6,0.4534]
[1745605168280,5.57290747,1794.4,1793.6,0.4534]
[1745605168456,0.03006606,1793.9,1793.7,0.4534]
[1745605171476,0.03006606,1793.9,1793.7,0.50913994]
[1745605172074,0.03006606,1793.9,1793.7,0.4534]
[1745605173797,0.03006606,1793.9,1793.8,0.05574013]
[1745605174149,0.03006606,1793.9,1793.8,0.50914013]
[1745605174358,0.03006606,1793.9,1793.8,0.4534]
[1745605175282,0.03006606,1793.9,1793.8,0.50913168]
[1745605175600,0.03006606,1793.9,1793.8,0.4534]
[1745605176456,0.03006606,1793.9,1793.8,0.86205317]
[1745605179485,0.03006606,1793.9,1793.8,1.46778015]
[1745605179673,0.03006606,1793.9,1793.8,1.41205317]
[1745605179971,0.03006606,1793.9,1793.8,1.46777585]
[1745605180171,0.03006606,1793.9,1793.8,1.4677759]
[1745605180585,0.03006606,1793.9,1793.8,1.41205317]
[1745605181099,0.03006606,1793.9,1793.8,0.86205317]
[1745605185222,0.03006606,1793.9,1793.8,0.91778027]
[1745605185566,0.03006606,1793.9,1793.8,0.86205317]
[1745605189459,0.03006606,1793.9,1793.7,5.057]
[1745605189604,0.03006606,1793.9,1793.7,5.11273718]
[1745605190003,0.03006606,1793.9,1793.8,3.4534]
[1745605190213,0.03006606,1793.9,1793.8,4.04063754]
[1745605190850,0.03006606,1793.9,1793.8,4.45301383]
[1745605195541,0.03006606,1793.9,1793.8,4.50873842]
[1745605198958,0.03006606,1793.9,1793.8,4.45301383]
[1745605200430,0.03006606,1793.9,1793.8,0.41237629]
[1745605200766,0.03006606,1793.9,1793.8,3.0]
[1745605200938,0.03006606,1793.9,1793.7,5.11273715]
[1745605201567,0.03006606,1793.9,1793.8,3.0]
[1745605201770,0.03006606,1793.9,1793.8,4.04063754]
[1745605202418,0.03006606,1793.9,1793.8,4.44929995]
[1745605203766,0.03006606,1793.9,1793.8,3.86206241]
[1745605203971,0.03006606,1793.9,1793.8,3.91779139]
[1745605204257,0.03006606,1793.9,1793.8,3.86206241]
[1745605204480,0.03006606,1793.9,1793.8,3.40866241]
[1745605205283,0.03006606,1793.9,1793.8,8.46466241]
[1745605207047,0.03006606,1793.9,1793.8,8.91806241]
[1745605211379,0.03006606,1793.9,1793.8,9.50529995]
[1745605211768,0.03006606,1793.9,1793.8,15.08005744]
[1745605212288,0.03006606,1793.9,1793.8,9.50529995]
[1745605212743,0.03006606,1793.9,1793.8,15.1357835]
[1745605212944,0.03006606,1793.9,1793.8,9.50529995]
[1745605213153,0.03006606,1793.9,1793.8,9.56102587]
[1745605213357,0.03006606,1793.9,1793.8,9.50529995]
[1745605213556,0.03006606,1793.9,1793.8,8.46466241]
[1745605219175,0.03006606,1793.9,1793.6,5.052]
[1745605219176,0.84206606,1793.9,1793.6,5.052]
[1745605219892,0.03006606,1793.9,1793.4,16.716]
[1745605220185,0.812,1793.6,1793.3,5.052]
[1745605221662,6.38242279,1793.2,1793.1,0.05]
[1745605222004,7.02066507,1793.2,1793.1,0.05]
[1745605222755,5.57818701,1792.7,1792.3,16.716]
[1745605222984,0.8176,1792.7,1792.3,16.716]
[1745605226670,0.7833,1792.2,1792.1,0.05]
[1745605232101,1.47830568,1792.2,1792.1,0.05]
[1745605232510,0.7833,1792.2,1792.1,0.05]
[1745605237004,0.8274,1792.6,1792.1,0.05]
[1745605237186,0.8274,1792.6,1792.1,0.95]
[1745605238377,5.57805697,1792.8,1792.1,0.05]
[1745605238378,0.8274,1792.4,1792.1,0.05]
[1745605238614,0.8274,1792.2,1792.1,0.05]
[1745605241574,0.7505,1792.4,1792.1,0.05]
[1745605242362,6.32974696,1792.4,1792.1,0.05]
[1745605242647,0.809,1792.3,1792.1,0.05]
[1745605243939,0.8195,1792.2,1792.1,0.05]
[1745605245311,0.91655062,1792.6,1792.1,0.05]
[1745605245540,0.8195,1792.5,1792.1,0.05]
[1745605246405,0.8195,1792.5,1792.2,0.9]
[1745605247241,0.8302,1792.7,1792.3,5.69603048]
[1745605247755,0.8302,1792.7,1792.3,5.64023754]
[1745605248808,0.8302,1792.7,1792.4,0.05578159]
[1745605249400,0.8302,1792.7,1792.3,5.64023754]
[1745605249606,0.8302,1792.7,1792.4,0.05578155]
[1745605250101,0.8302,1792.7,1792.3,5.64023754]
[1745605250304,0.8302,1792.7,1792.3,5.053]
[1745605250704,0.8302,1792.7,1792.4,0.05578156]
[1745605250910,0.8302,1792.7,1792.3,5.053]
[1745605252256,0.58723754,1793.0,1792.2,3.9]
[1745605252257,5.57924486,1792.4,1792.2,0.9]
[1745605252413,6.34985882,1792.5,1792.2,0.9]
[1745605252603,0.63498588,1792.4,1792.1,0.05]
[1745605252957,0.8275,1792.3,1792.1,0.05]
[1745605253104,6.16529156,1792.8,1792.1,0.05]
[1745605253307,6.40569745,1792.7,1792.1,0.05]
[1745605253842,5.5785151,1792.6,1792.1,0.05]
[1745605254152,0.7956,1792.4,1792.1,0.05]
[1745605256049,0.7869,1792.6,1792.1,0.5534]
[1745605257053,6.3498534,1792.9,1792.2,0.95579215]
[1745605257355,0.7722,1792.9,1792.4,0.5034]
[1745605257504,0.7722,1792.9,1792.5,0.05578113]
[1745605257844,0.7722,1793.1,1792.4,3.5034]
[1745605258012,6.34931617,1793.1,1792.4,3.5034]
[1745605258414,6.3491343,1793.1,1792.4,3.5034]
[1745605258614,0.7722,1793.1,1792.4,3.5034]
[1745605258913,0.7722,1793.1,1792.5,0.58723754]
[1745605259550,0.7722,1793.1,1792.4,3.5034]
[1745605259908,6.34926567,1793.1,1792.4,3.5034]
[1745605260342,5.57803265,1792.8,1792.4,3.5034]
[1745605260549,0.8242,1792.8,1792.4,3.5034]
[1745605262146,1.44671208,1792.8,1792.3,5.053]
[1745605262449,7.02473224,1792.8,1792.3,5.053]
[1745605263632,1.44671208,1792.8,1792.3,5.053]
[1745605264554,6.38697447,1793.0,1792.3,5.053]
[1745605265053,11.96445475,1793.0,1792.3,5.053]
[1745605265253,6.38697447,1793.0,1792.3,5.053]
[1745605265423,5.5776767,1792.9,1792.3,5.053]
[1745605265807,0.8096,1793.0,1792.3,5.053]
[1745605266013,1.44784228,1793.2,1792.5,1.09063754]
[1745605266213,5.57593709,1793.5,1792.7,1.09063754]
[1745605266455,6.38233709,1793.5,1792.8,5.052]
[1745605266623,6.38233709,1793.5,1792.9,0.5034]
[1745605267551,5.57547478,1793.6,1793.0,0.5034]
[1745605267756,0.776,1793.8,1793.0,0.5034]
[1745605267757,0.776,1793.4,1793.0,0.5034]
[1745605267913,0.776,1793.4,1792.9,3.0]
[1745605271318,5.5765783,1793.3,1792.8,5.5554]
[1745605271750,6.35214712,1793.4,1792.8,5.5554]
[1745605272053,0.63521471,1793.3,1792.8,5.5554]
[1745605272815,6.34198698,1793.6,1792.8,5.5554]
[1745605273658,0.7665,1793.6,1792.8,5.5554]
[1745605273852,0.7665,1793.6,1793.0,0.5034]
[1745605275150,6.33022523,1793.8,1793.0,0.5034]
[1745605275452,6.20819901,1793.7,1793.0,0.5034]
[1745605275759,0.63302252,1793.7,1793.2,0.5034]
[1745605276051,6.33019838,1793.8,1793.2,0.5034]
[1745605276743,11.90521643,1793.8,1793.2,0.5034]
[1745605276917,6.33019838,1793.8,1793.2,0.5034]
[1745605277420,11.90519488,1793.8,1793.2,0.5034]
[1745605277632,6.33019838,1793.8,1793.2,0.5034]
[1745605277833,0.63301984,1793.7,1793.2,0.5034]
[1745605278624,6.33019838,1793.8,1793.2,0.5034]
[1745605278625,0.7554,1793.8,1793.2,0.5034]
[1745605278825,0.7554,1793.8,1793.2,5.5504]
[1745605279746,0.03006606,1793.9,1793.3,4.14639202]
[1745605279970,0.03006606,1793.9,1793.4,0.5034]
[1745605280179,0.03006606,1793.9,1793.6,0.5034]
[1745605280980,0.03006606,1793.9,1793.6,0.55914393]
[1745605281166,0.03006606,1793.9,1793.6,0.5034]
[1745605281487,0.03006606,1793.9,1793.6,5.5504]
[1745605281846,0.03006606,1793.9,1793.7,3.64298118]
[1745605282082,0.03006606,1793.9,1793.8,0.5034]
[1745605285776,0.03006606,1793.9,1793.8,0.92168939]
[1745605285970,0.03006606,1793.9,1793.8,0.5034]
[1745605287759,0.03006606,1793.9,1793.7,3.0]
[1745605287958,0.03006606,1793.9,1793.6,5.5504]
[1745605288458,0.03006606,1793.9,1793.5,21.769]
[1745605294227,0.03006606,1793.9,1793.5,5.045]
[1745605294228,6.38084184,1793.9,1793.5,5.045]
[1745605294377,0.80616606,1793.9,1793.5,5.045]
[1745605294773,0.80616606,1793.9,1793.5,5.63223754]
[1745605294774,0.03006606,1793.9,1793.5,5.63223754]
[1745605297521,0.03006606,1793.9,1793.5,5.68798464]
[1745605297724,0.03006606,1793.9,1793.5,5.63223754]
[1745605298089,0.03006606,1793.9,1793.5,5.045]
[1745605298498,0.7611,1793.8,1793.5,5.045]
[1745605299105,0.03006606,1793.9,1793.5,5.045]
[1745605301227,6.39408366,1793.8,1793.5,5.045]
[1745605301385,0.8192,1793.8,1793.5,5.045]
[1745605301585,0.8192,1793.8,1793.3,3.0]
[1745605301878,0.8192,1793.8,1793.3,3.64299096]
[1745605302090,0.8192,1793.8,1793.3,3.58723754]
[1745605309429,0.8192,1793.8,1793.5,0.58723754]
[1745605309938,0.85076606,1793.9,1793.5,1.09063754]
[1745605311143,0.85076606,1793.9,1793.3,3.5034]
[1745605311440,6.42537767,1793.9,1793.3,3.5034]
[1745605311601,0.85076606,1793.9,1793.3,3.5034]
[1745605313537,0.85076606,1793.9,1793.4,0.05575212]
[1745605313747,0.85076606,1793.9,1793.4,0.58723754]
[1745605314045,0.03006606,1793.9,1793.6,1.09063754]
[1745605314198,0.03006606,1793.9,1793.7,3.0]
[1745605317533,0.03006606,1793.9,1793.8,0.58723754]
[1745605317720,0.03006606,1793.9,1793.8,0.64297532]
[1745605318063,0.03006606,1793.9,1793.8,1.14637532]
[1745605318561,0.03006606,1793.9,1793.8,1.09063754]
[1745605319120,0.74886606,1794.3,1793.8,1.09063754]
[1745605321069,0.74886606,1794.3,1794.0,0.58723754]
[1745605321362,0.0771676,1794.6,1794.0,0.58723754]
[1745605321539,0.0771676,1794.6,1794.0,5.041]
[1745605322261,0.805,1794.5,1794.0,5.041]
[1745605322823,0.805,1794.5,1794.0,5.62823754]
[1745605323666,0.805,1794.5,1794.1,0.5233]
[1745605324225,0.0771676,1794.6,1794.1,0.5233]
[1745605324423,0.0771676,1794.6,1794.2,0.64296631]
[1745605324625,0.0771676,1794.6,1794.4,0.58723754]
[1745605325739,0.0771676,1794.6,1794.4,5.041]
[1745605325936,0.0771676,1794.6,1794.4,5.62823754]
[1745605326250,0.0771676,1794.6,1794.5,0.05571803]
[1745605326439,0.0771676,1794.6,1794.4,5.62823754]
[1745605331341,0.0771676,1794.6,1794.4,5.68395204]
[1745605331830,0.0771676,1794.6,1794.5,3.5233]
[1745605336151,0.0771676,1794.6,1794.5,3.0]
[1745605340548,0.0771676,1794.6,1794.4,6.15153754]
[1745605341008,0.0771676,1794.6,1794.4,6.08396616]
[1745605341379,0.0771676,1794.6,1794.5,3.05571475]
[1745605341682,0.0771676,1794.6,1794.5,3.5233]
[1745605341886,0.0771676,1794.6,1794.5,9.64588289]
[1745605342101,0.0771676,1794.6,1794.5,4.0733]
[1745605344428,0.0771676,1794.6,1794.5,3.5233]
[1745605344729,0.0771676,1794.6,1794.5,4.11053754]
[1745605345090,0.0771676,1794.6,1794.5,4.16624845]
[1745605345521,0.0771676,1794.6,1794.5,4.11053754]
[1745605345827,0.0771676,1794.6,1794.5,4.16624798]
[1745605346129,0.0771676,1794.6,1794.5,4.11053754]
[1745605346331,0.0771676,1794.6,1794.5,4.1662481]
[1745605347029,0.0771676,1794.6,1794.5,4.11053754]
[1745605348735,0.0771676,1794.6,1794.5,4.16624802]
[1745605349309,0.05,1794.9,1794.6,0.55]
[1745605349639,0.05,1794.9,1794.8,0.58723754]
[1745605349835,0.05,1794.9,1794.8,8.62123754]
[1745605351036,0.05,1794.9,1794.8,9.04894385]
[1745605354664,0.05,1794.9,1794.8,9.10464466]
[1745605355070,0.05,1794.9,1794.8,9.04894385]
[1745605356069,0.05,1794.9,1794.8,9.10464457]
[1745605356849,0.05,1794.9,1794.8,9.04894385]
[1745605357063,0.05,1794.9,1794.8,9.10464465]
[1745605358348,0.05,1794.9,1794.8,9.04894385]
[1745605358555,0.05,1794.9,1794.8,9.10464318]
[1745605360278,0.05,1794.9,1794.8,6.04894385]
[1745605360783,0.05,1794.9,1794.8,9.04894385]
[1745605364794,0.8509,1794.9,1794.8,8.46170631]
[1745605365085,0.8509,1794.9,1794.6,5.61523754]
[1745605366685,0.05,1794.9,1794.8,0.58723754]
[1745605367591,0.05,1794.9,1794.8,1.00494594]
[1745605370172,0.05,1794.9,1794.8,0.58723754]
[1745605370600,0.8022,1794.9,1794.8,0.58723754]
[1745605371030,0.8022,1794.9,1794.7,3.0]
[1745605372022,0.8022,1794.9,1794.6,5.028]
[1745605372917,0.8022,1794.9,1794.6,5.61523754]
[1745605378982,0.8022,1794.9,1794.7,0.9]
[1745605379915,0.8022,1794.9,1794.6,5.61523754]
[1745605382213,0.8022,1794.9,1794.8,0.58723754]
[1745605382921,0.05,1794.9,1794.8,0.58723754]
[1745605384222,0.05,1794.9,1794.8,1.23017758]
[1745605384577,0.05,1794.9,1794.8,0.64294004]
[1745605385327,0.05,1794.9,1794.8,1.64453505]
[1745605385498,0.05,1794.9,1794.8,1.05729751]
[1745605385700,0.05,1794.9,1794.8,1.00159501]
[1745605386284,0.05,1794.9,1794.8,1.64453264]
[1745605386489,0.05,1794.9,1794.8,1.58883255]
[1745605386828,0.05,1794.9,1794.8,1.00159501]
[1745605389219,0.05,1794.9,1794.8,1.90159501]
[1745605392846,0.05,1794.9,1794.6,5.61523754]
[1745605392847,0.8502,1794.9,1794.6,5.61523754]
[1745605393189,0.8502,1794.9,1794.6,5.028]
[1745605400337,0.8107,1794.8,1794.3,5.43430918]
[1745605400532,0.8107,1794.8,1794.3,5.023]
[1745605401035,0.7706,1794.7,1794.3,5.023]
[1745605401210,0.7706,1794.8,1794.3,5.023]
[1745605402542,0.7706,1794.8,1794.3,5.61023754]
[1745605406342,0.7706,1794.8,1794.5,0.58723754]
[1745605407000,0.7706,1794.8,1794.7,0.58723754]
[1745605407340,0.8152,1794.9,1794.7,5.61123754]
[1745605407845,0.05,1794.9,1794.7,6.02254267]
[1745605408339,0.05,1794.9,1794.8,3.0]
[1745605429057,0.05,1794.9,1794.8,3.58723754]
[1745605429257,0.05,1794.9,1794.8,9.73789083]
[1745605429790,0.7962,1795.5,1795.0,1.0733]
[1745605429998,0.05,1795.9,1795.0,1.0733]
[1745605429999,0.7962,1795.7,1795.4,3.58723754]
[1745605430175,0.7962,1795.7,1795.6,3.58723754]
[1745605431666,0.05,1795.9,1795.6,3.58723754]
[1745605431987,0.05,1795.9,1795.8,0.58723754]
[1745605435165,0.05,1795.9,1795.8,1.11053754]
[1745605435360,0.05,1795.9,1795.8,0.58723754]
[1745605438095,0.8659,1795.9,1795.8,0.58723754]
[1745605439293,0.8659,1795.9,1795.7,0.58723754]
[1745605441773,0.8659,1795.9,1795.6,4.01016625]
[1745605442911,0.8659,1795.9,1795.3,22.30723754]
[1745605443081,0.8659,1795.9,1795.4,3.0]
[1745605443603,0.8659,1795.9,1795.5,0.58723754]
[1745605447980,0.7987,1795.8,1795.4,3.0]
[1745605448181,0.7987,1795.7,1795.4,3.0]
[1745605448406,0.7987,1795.7,1795.3,22.30723754]
[1745605449724,5.61832913,1795.9,1795.3,22.30723754]
[1745605449725,0.05,1795.9,1795.5,1.17447508]
[1745605449882,0.05,1795.9,1795.8,0.58723754]
[1745605450085,0.05,1795.9,1795.8,8.60223754]
[1745605452913,0.05,1795.9,1795.8,9.02387531]
[1745605456204,0.8325,1795.9,1795.8,8.015]
[1745605456785,0.8325,1795.9,1795.8,3.0]
[1745605459022,0.8325,1795.9,1795.8,3.58723754]
[1745605459322,0.05,1795.9,1795.8,3.58723754]
[1745605461647,0.05,1795.9,1795.8,4.00795783]
[1745605462912,0.05,1795.9,1795.8,8.59623754]
[1745605464013,0.05,1795.9,1795.8,8.009]
[1745605464320,0.8586,1795.9,1795.8,8.009]
[1745605466310,0.8586,1795.9,1795.8,5.009]
[1745605466629,0.8586,1795.9,1795.5,5.009]
[1745605467030,5.61843756,1795.9,1795.5,5.009]
[1745605467387,0.8086,1795.7,1795.5,5.009]
[1745605469574,0.7994,1795.6,1795.5,5.009]
[1745605469976,0.7994,1795.6,1795.2,5.59623754]
[1745605471793,0.7994,1795.6,1795.4,0.58723754]
[1745605474793,0.05,1795.9,1795.5,0.5233]
[1745605474999,0.05,1795.9,1795.8,0.58723754]
[1745605476576,0.05,1795.9,1795.7,3.0]
[1745605476979,0.05,1795.9,1795.6,5.01]
[1745605477179,0.8192,1795.8,1795.6,5.01]
[1745605477385,0.8192,1795.8,1795.2,1.00861305]
[1745605477707,0.8192,1795.8,1795.3,5.009]
[1745605480469,0.8192,1795.8,1795.4,0.58723754]
[1745605488016,0.8192,1795.8,1795.4,3.58723754]
[1745605488429,0.8192,1795.8,1795.4,3.64293158]
[1745605488919,0.05,1795.9,1795.6,0.58723754]
[1745605489214,0.05,1795.9,1795.8,0.58723754]
[1745605489381,0.05,1795.9,1795.7,5.005]
[1745605489822,0.05,1795.9,1795.8,0.58723754]
[1745605490210,0.05,1795.9,1795.8,3.58723754]
[1745605490929,0.05,1795.9,1795.8,4.11053754]
[1745605491598,0.05,1795.9,1795.8,3.58723754]
[1745605494382,0.05,1795.9,1795.8,3.64291652]
[1745605494586,0.05,1795.9,1795.8,3.58723754]
[1745605495527,0.05,1795.9,1795.8,4.11053754]
[1745605504940,0.8478,1795.9,1795.8,3.0]
[1745605506138,0.05,1795.9,1795.8,3.0]
[1745605510553,0.05,1795.9,1795.8,3.57897186]
[1745605511055,0.05,1795.9,1795.8,3.5233]
[1745605511920,0.05,1795.9,1795.8,3.0]
[1745605514564,0.7518,1795.7,1795.3,4.998]
[1745605514856,0.7518,1795.4,1795.3,4.998]
[1745605518247,0.7578,1795.8,1795.4,3.0]
[1745605518467,0.7578,1795.8,1795.5,0.58723754]
[1745605521334,0.7578,1795.8,1795.5,0.6429224]
[1745605521655,0.05,1795.9,1795.7,0.58723754]
[1745605521858,0.05,1795.9,1795.8,3.0]
[1745605524802,0.05,1795.9,1795.8,3.4144795]
[1745605527680,0.8357,1795.9,1795.8,3.0]
[1745605528402,0.05,1795.9,1795.8,3.0]
[1745605528868,0.8357,1795.9,1795.8,3.0]
[1745605530505,0.05,1795.9,1795.8,3.0]
[1745605540784,0.05,1795.9,1795.8,7.998]
[1745605544997,0.05,1795.9,1795.8,8.85728576]
[1745605545199,0.05,1795.9,1795.8,7.998]
[1745605547628,0.05,1795.9,1795.8,8.05367771]
[1745605548386,0.05,1795.9,1795.8,7.998]
[1745605551913,0.05,1795.9,1795.8,14.6955225]
[1745605552249,0.4048936,1796.4,1796.0,0.5233]
[1745605552411,0.4048936,1796.4,1796.2,0.58723754]
[1745605552727,0.4048936,1796.4,1796.3,7.993]
[1745605554938,0.4048936,1796.4,1796.3,4.993]
[1745605555144,1.1937936,1796.4,1796.3,4.993]
[1745605556647,1.1937936,1796.4,1796.0,3.0]
[1745605556851,1.1937936,1796.4,1796.1,3.0]
[1745605559963,1.1937936,1796.4,1796.1,3.58723754]
[1745605560164,1.1937936,1796.4,1796.1,3.0]
[1745605561863,0.7729,1796.3,1796.1,3.0]
[1745605565163,0.4048936,1796.4,1796.2,0.58723754]
[1745605566563,0.4048936,1796.4,1796.2,0.64290221]
[1745605566743,0.4048936,1796.4,1796.2,0.58723754]
[1745605567352,0.4048936,1796.4,1796.1,3.0]
[1745605568273,0.7533,1796.3,1796.1,3.0]
[1745605568948,0.7516,1796.2,1795.7,0.42556476]
[1745605569144,5.56750743,1796.2,1795.7,4.992]
[1745605569358,0.7516,1796.1,1795.7,4.992]
[1745605569553,6.31926324,1796.1,1795.7,4.992]
[1745605569761,0.7516,1796.1,1795.7,4.992]
[1745605570269,0.7516,1796.1,1795.8,3.0]
[1745605571173,0.7516,1796.1,1795.8,3.6429175]
[1745605571476,0.4048936,1796.4,1795.8,3.6429175]
[1745605571664,0.8079,1796.3,1795.8,4.11053754]
[1745605572840,0.8079,1796.3,1795.8,4.16621492]
[1745605573578,0.8079,1796.3,1795.8,4.11053754]
[1745605574081,0.8185,1796.2,1795.8,3.0]
[1745605574587,0.8185,1796.2,1795.7,5.41054699]
[1745605575380,0.7872,1796.0,1795.7,4.992]
[1745605576605,0.7741,1795.8,1795.4,4.987]
[1745605576893,0.7741,1795.3,1795.1,4.987]
[1745605577072,6.34435222,1795.3,1795.1,4.987]
[1745605577252,6.34423657,1795.3,1795.1,4.987]
[1745605577578,0.7741,1795.3,1795.1,4.987]
[1745605578581,0.7737,1795.7,1795.2,0.58723754]
[1745605581014,0.7737,1795.7,1795.3,0.5233]
[1745605581233,0.7737,1795.7,1795.4,0.58723754]
[1745605581516,0.7737,1795.7,1795.2,3.58723754]
[1745605584017,0.7737,1795.7,1795.2,3.64293387]